bitfinex/quotes_SOLUSD_20250616
["timestamp","ask_amount","ask_price","bid_price","bid_amount"]
[1750091315134,4.73792842,157.65,157.63,6.34395536]
[1750091315341,0.28432314,157.67,157.64,8.40360664]
[1750091315523,4.73746109,157.66,157.64,8.40360664]
[1750091315711,4.73746109,157.65,157.64,8.40360664]
[1750091317846,0.28432314,157.67,157.64,8.40360664]
[1750091318318,6.62670115,157.67,157.64,8.40360664]
[1750091318756,0.28432314,157.67,157.64,8.40360664]
[1750091319616,0.28432314,157.67,157.61,6.34477507]
[1750091319838,0.28432314,157.67,157.64,8.40360664]
[1750091320035,38.33432314,157.67,157.65,8.40360664]
[1750091320226,6.62679899,157.67,157.64,8.40360664]
[1750091320746,0.28432314,157.67,157.64,8.40360664]
[1750091320933,0.28432314,157.66,157.61,6.34477507]
[1750091321131,0.28432314,157.66,157.62,8.40360664]
[1750091322341,6.62717462,157.66,157.62,8.40360664]
[1750091324339,6.62717462,157.66,157.62,14.74796745]
[1750091324750,0.28432314,157.66,157.63,8.40360664]
[1750091325356,4.73767863,157.68,157.63,8.40360664]
[1750091325521,14.3842369,157.69,157.65,8.40360664]
[1750091325717,14.3842369,157.69,157.62,6.34436081]
[1750091325718,22.78784354,157.69,157.64,8.40360664]
[1750091326025,0.28432314,157.68,157.64,8.40360664]
[1750091326437,0.28432314,157.68,157.64,14.74716255]
[1750091326741,6.62631143,157.68,157.64,8.40360664]
[1750091327649,0.28432314,157.66,157.62,8.40360664]
[1750091328551,6.62724891,157.66,157.62,8.40360664]
[1750091329049,6.62724891,157.66,157.61,14.748254]
[1750091330237,0.28432314,157.65,157.61,14.748254]
[1750091332943,0.28432314,157.65,157.62,8.40360664]
[1750091333238,0.28432314,157.66,157.62,8.40360664]
[1750091334451,0.28432314,157.66,157.62,14.74769802]
[1750091337248,0.28432314,157.66,157.63,8.40360664]
[1750091337547,18.64964886,157.69,157.65,8.40360664]
[1750091337754,0.28432314,157.68,157.65,8.40360664]
[1750091337930,0.14216157,157.68,157.65,8.40360664]
[1750091338331,0.28432314,157.68,157.65,8.40360664]
[1750091339040,0.28432314,157.68,157.65,14.74672358]
[1750091340056,0.28432314,157.68,157.65,8.40360664]
[1750091340452,13.7620694,157.7,157.67,8.40360664]
[1750091340638,13.7620694,157.7,157.69,8.40360664]
[1750091340953,1.5835,157.79,157.69,8.40360664]
[1750091341178,37.7067337,157.78,157.73,8.40360664]
[1750091341337,18.933972,157.77,157.73,8.40360664]
[1750091341534,27.33757864,157.77,157.73,8.40360664]
[1750091342236,0.14216157,157.74,157.7,8.40360664]
[1750091342449,0.28432314,157.74,157.7,8.40360664]
[1750091342634,0.28432314,157.74,157.71,8.40360664]
[1750091342838,0.28432314,157.74,157.73,8.40360664]
[1750091343833,24.98812411,157.77,157.73,8.40360664]
[1750091344033,33.39173075,157.77,157.73,8.40360664]
[1750091344243,0.14216157,157.76,157.72,8.40360664]
[1750091344751,0.14216157,157.72,157.66,121.14237924]
[1750091344969,0.14216157,157.72,157.69,8.40360664]
[1750091345141,0.14216157,157.72,157.66,6.34237924]
[1750091345337,0.14216157,157.69,157.62,1.5247]
[1750091345539,0.28432314,157.68,157.64,8.40360664]
[1750091346752,0.28432314,157.68,157.65,8.40360664]
[1750091347662,0.28432314,157.7,157.66,8.40360664]
[1750091348165,6.6255081,157.7,157.66,8.40360664]
[1750091348635,0.28432314,157.7,157.66,8.40360664]
[1750091349366,0.28432314,157.7,157.67,8.40360664]
[1750091349543,0.28432314,157.7,157.66,8.40360664]
[1750091350142,33.17846356,157.71,157.66,8.40360664]
[1750091351362,24.77485692,157.71,157.66,14.74636868]
[1750091351569,33.17846356,157.71,157.66,14.74636868]
[1750091351868,8.40360664,157.7,157.66,8.40360664]
[1750091353361,0.28432314,157.7,157.66,8.40360664]
[1750091354061,6.6255101,157.7,157.66,8.40360664]
[1750091354671,0.28432314,157.7,157.66,8.40360664]
[1750091355367,6.62548157,157.7,157.66,8.40360664]
[1750091358679,0.28432314,157.7,157.67,8.40360664]
[1750091360667,0.28432314,157.7,157.64,6.34356762]
[1750091360874,0.28432314,157.7,157.67,8.40360664]
[1750091361262,6.62560357,157.7,157.67,8.40360664]
[1750091362478,6.62560357,157.7,157.66,8.40360664]
[1750091362654,0.28432314,157.7,157.67,8.40360664]
[1750091365768,0.28432314,157.7,157.63,104.65982742]
[1750091365951,6.62562836,157.7,157.66,8.40360664]
[1750091366271,6.62562836,157.7,157.67,8.40360664]
[1750091366475,6.62562836,157.7,157.64,6.34356762]
[1750091366650,15.029235,157.7,157.66,8.40360664]
[1750091367766,15.029235,157.7,157.62,6.34437254]
[1750091367959,15.029235,157.7,157.66,8.40360664]
[1750091368651,0.28432314,157.68,157.66,8.40360664]
[1750091369069,5.02129085,157.67,157.66,8.40360664]
[1750091370063,5.02129085,157.67,157.66,14.74636954]
[1750091370268,5.02129085,157.67,157.66,8.40360664]
[1750091371683,0.28432314,157.67,157.66,8.40360664]
[1750091371858,5.02155566,157.67,157.66,8.40360664]
[1750091372880,5.02155566,157.67,157.65,8.40360664]
[1750091373068,14.74523988,157.69,157.65,8.40360664]
[1750091373069,5.02155566,157.66,157.65,8.40360664]
[1750091373379,5.02155566,157.66,157.64,6.34338854]
[1750091373565,0.28432314,157.66,157.64,8.40360664]
[1750091374672,0.28432314,157.66,157.64,14.74713339]
[1750091374877,0.28432314,157.66,157.65,8.40360664]
[1750091375872,5.02370597,157.66,157.65,8.40360664]
[1750091377487,5.02469309,157.66,157.65,8.40360664]
[1750091378082,5.02469309,157.66,157.64,8.40360664]
[1750091378278,0.28432314,157.66,157.64,8.40360664]
[1750091379373,0.28432314,157.66,157.61,22.20669305]
[1750091379586,0.28432314,157.66,157.64,8.40360664]
[1750091380791,4.74287048,157.65,157.64,14.74717426]
[1750091385886,4.74355785,157.65,157.64,14.74717426]
[1750091388700,0.28432314,157.66,157.64,14.74717426]
[1750091388895,4.7503176,157.65,157.64,6.34356762]
[1750091389195,4.7503176,157.65,157.64,11.75331262]
[1750091389889,4.7503176,157.65,157.64,6.34356762]
[1750091390087,4.7503176,157.65,157.64,11.75331262]
[1750091390880,38.05,157.64,157.59,95.14554785]
[1750091391081,5.03464074,157.63,157.61,5.409745]
[1750091391281,0.28432314,157.61,157.58,11.92580673]
[1750091391477,4.7503176,157.6,157.59,5.409745]
[1750091391676,4.75356885,157.6,157.59,5.409745]
[1750091392295,4.75356885,157.6,157.59,11.7553253]
[1750091392880,4.75356885,157.6,157.59,14.80428441]
[1750091393270,1.5087,157.66,157.59,23.26298852]
[1750091393492,5.03147382,157.65,157.64,8.45870411]
[1750091393692,4.74715068,157.65,157.59,22.20953105]
[1750091393890,4.74715068,157.64,157.63,8.45870411]
[1750091394096,4.74715068,157.64,157.63,14.80267416]
[1750091394603,4.74668348,157.64,157.63,14.80267416]
[1750091395777,4.74668348,157.64,157.63,6.34397005]
[1750091395974,4.74668348,157.64,157.63,8.45870411]
[1750091396204,5.03100662,157.64,157.63,8.45870411]
[1750091396400,0.28432314,157.63,157.58,15.86494003]
[1750091396587,4.74668348,157.62,157.59,8.45870411]
[1750091396901,4.74668348,157.61,157.59,8.45870411]
[1750091397091,4.74668348,157.6,157.59,8.45870411]
[1750091397402,4.74791086,157.6,157.59,8.45870411]
[1750091397613,4.74791086,157.6,157.58,8.45870411]
[1750091397775,4.74791086,157.59,157.57,14.80508984]
[1750091397975,4.74791086,157.58,157.57,14.80508984]
[1750091399675,0.28432314,157.61,157.57,14.80508984]
[1750091399879,4.74330922,157.6,157.57,14.80508984]
[1750091400108,0.28432314,157.61,157.57,14.80508984]
[1750091400404,4.74332975,157.6,157.57,14.80508984]
[1750091400614,0.28432314,157.61,157.58,8.45870411]
[1750091400789,4.74304305,157.6,157.58,8.45870411]
[1750091400994,0.28432314,157.61,157.58,8.45870411]
[1750091401239,4.73992327,157.6,157.58,8.45870411]
[1750091401393,0.28432314,157.61,157.58,14.80430321]
[1750091401916,0.28432314,157.62,157.58,6.3455991]
[1750091402088,0.28432314,157.63,157.61,8.45870411]
[1750091402294,0.14216157,157.63,157.59,8.45870411]
[1750091402492,0.14216157,157.61,157.58,14.80430321]
[1750091402717,0.28432314,157.61,157.58,14.80430321]
[1750091402888,0.28432314,157.62,157.58,14.80430321]
[1750091403782,4.73677405,157.61,157.58,14.80430321]
[1750091404079,0.28432314,157.62,157.58,14.80430321]
[1750091404503,6.62877957,157.62,157.59,8.45870411]
[1750091404688,8.74302725,157.6,157.54,6.34759426]
[1750091404894,13.19440221,157.59,157.54,14.80629837]
[1750091405200,8.45870411,157.59,157.54,14.80629837]
[1750091405788,4.73632656,157.58,157.54,14.80629837]
[1750091405988,8.45870411,157.59,157.54,14.80629837]
[1750091406189,4.73626344,157.58,157.54,14.80629837]
[1750091406386,4.73626344,157.57,157.54,6.34759426]
[1750091406593,8.45870411,157.58,157.54,14.80629837]
[1750091406792,4.73643355,157.57,157.54,14.80629837]
[1750091406988,0.28432314,157.58,157.54,14.80629837]
[1750091407188,4.7363498,157.57,157.54,6.34759426]
[1750091407419,0.28432314,157.58,157.54,14.80629837]
[1750091408591,0.28432314,157.58,157.55,8.45870411]
[1750091409691,6.63033426,157.58,157.55,8.45870411]
[1750091410033,4.73182535,157.57,157.54,8.45870411]
[1750091410327,0.28432314,157.58,157.54,8.45870411]
[1750091410691,6.63030931,157.58,157.53,6.34783552]
[1750091410914,0.28432314,157.58,157.54,8.45870411]
[1750091411912,6.63030644,157.58,157.54,8.45870411]
[1750091412121,0.28432314,157.58,157.54,14.80625783]
[1750091412299,0.28432314,157.58,157.55,8.45870411]
[1750091412694,4.72871112,157.6,157.55,8.45870411]
[1750091412995,4.72583076,157.59,157.56,8.45870411]
[1750091413195,34.54086568,157.6,157.54,6.34755372]
[1750091413508,4.72572076,157.59,157.56,8.45870411]
[1750091413710,0.28432314,157.59,157.56,8.45870411]
[1750091414808,25.94,157.6,157.56,8.45870411]
[1750091415116,4.72446717,157.59,157.56,8.45870411]
[1750091415319,4.72441741,157.6,157.55,6.3470994]
[1750091415511,4.72441741,157.6,157.56,8.45870411]
[1750091415512,4.72434454,157.59,157.56,8.45870411]
[1750091415710,4.72441741,157.6,157.56,14.80533599]
[1750091415928,4.72425426,157.59,157.56,14.80533599]
[1750091416244,4.72432487,157.6,157.57,8.45870411]
[1750091416245,0.28432314,157.6,157.57,8.45870411]
[1750091416440,33.18120477,157.64,157.59,8.45870411]
[1750091416730,4.72342235,157.63,157.56,111.01360319]
[1750091416930,33.18120477,157.64,157.62,8.45870411]
[1750091417110,4.72342152,157.63,157.62,8.45870411]
[1750091419325,11.06739157,157.63,157.56,88.8]
[1750091419523,4.72342152,157.62,157.6,8.45870411]
[1750091419720,11.06835322,157.63,157.59,8.45870411]
[1750091420022,4.7245664,157.62,157.59,8.45870411]
[1750091420233,11.06835322,157.63,157.59,8.45870411]
[1750091420234,4.7245664,157.61,157.59,8.45870411]
[1750091420407,11.06835322,157.63,157.59,8.45870411]
[1750091420611,4.72536258,157.62,157.59,8.45870411]
[1750091420912,4.72536258,157.61,157.59,8.45870411]
[1750091421114,5.00870631,157.62,157.59,8.45870411]
[1750091421328,4.72544176,157.61,157.59,8.45870411]
[1750091421520,4.72555163,157.6,157.59,8.45870411]
[1750091422113,4.72555163,157.6,157.57,6.34611047]
[1750091422114,4.72555163,157.6,157.58,8.45870411]
[1750091422433,6.34477584,157.61,157.58,8.45870411]
[1750091422930,4.72617497,157.6,157.58,8.45870411]
[1750091423139,6.34477584,157.61,157.58,8.45870411]
[1750091423311,4.7261991,157.6,157.58,8.45870411]
[1750091423634,6.34477584,157.61,157.58,8.45870411]
[1750091423837,4.72669651,157.6,157.56,8.45870411]
[1750091424031,4.72669651,157.59,157.56,8.45870411]
[1750091424225,0.28432314,157.6,157.56,8.45870411]
[1750091424445,4.72707223,157.59,157.56,8.45870411]
[1750091424754,0.28432314,157.6,157.56,8.45870411]
[1750091424954,4.72713459,157.59,157.56,8.45870411]
[1750091425150,6.3455803,157.59,157.56,8.45870411]
[1750091425311,4.72818041,157.58,157.56,8.45870411]
[1750091425507,6.3455803,157.59,157.55,8.45870411]
[1750091425712,4.72802049,157.58,157.55,8.45870411]
[1750091425912,6.3455803,157.59,157.55,8.45870411]
[1750091426646,19.81656865,157.6,157.56,8.45870411]
[1750091426815,4.7280025,157.59,157.56,8.45870411]
[1750091427016,19.81656865,157.6,157.56,8.45870411]
[1750091427352,11.07365367,157.59,157.56,8.45870411]
[1750091427531,6.34565046,157.59,157.56,8.45870411]
[1750091427721,4.72915482,157.58,157.56,8.45870411]
[1750091427922,0.28432314,157.58,157.55,8.45870411]
[1750091428120,8.74302725,157.58,157.52,6.34830044]
[1750091428438,1.87572314,157.58,157.54,8.45870411]
[1750091429137,1.5914,157.58,157.54,8.45870411]
[1750091429327,1.87572314,157.58,157.55,8.45870411]
[1750091430248,0.28432314,157.58,157.54,6.34732985]
[1750091430737,0.28432314,157.58,157.55,8.45870411]
[1750091431525,0.28432314,157.58,157.55,14.8058759]
[1750091431726,0.28432314,157.59,157.56,8.45870411]
[1750091431926,4.7310917,157.58,157.57,8.45870411]
[1750091432121,1.5708,157.62,157.57,8.45870411]
[1750091432444,3.30540155,157.63,157.61,8.45870411]
[1750091432648,4.73256445,157.62,157.56,24.86334886]
[1750091432846,31.65610477,157.64,157.61,8.45870411]
[1750091433148,4.73235695,157.63,157.62,8.45870411]
[1750091433848,4.73272129,157.63,157.61,6.3447378]
[1750091434016,31.65610477,157.64,157.62,8.45870411]
[1750091434216,4.73623397,157.63,157.62,8.45870411]
[1750091435860,4.73623397,157.63,157.62,14.80307665]
[1750091436025,31.65610477,157.64,157.62,14.80307665]
[1750091436220,31.65610477,157.64,157.63,8.45870411]
[1750091436426,36.39039511,157.64,157.63,8.45870411]
[1750091436639,31.65610477,157.64,157.63,8.45870411]
[1750091437759,31.65610477,157.64,157.63,14.80267416]
[1750091445262,11.90050015,157.72,157.63,14.80267416]
[1750091445263,1.5584,157.74,157.64,18.64964886]
[1750091445430,1.5584,157.74,157.71,8.45870411]
[1750091445431,4.72671559,157.73,157.71,8.45870411]
[1750091445636,4.72671559,157.72,157.71,8.45870411]
[1750091446538,4.72671559,157.73,157.71,8.45870411]
[1750091446739,1.5584,157.74,157.71,8.45870411]
[1750091446936,4.71901904,157.73,157.71,8.45870411]
[1750091447243,1.70056157,157.74,157.71,8.45870411]
[1750091447434,4.71901429,157.73,157.71,8.45870411]
[1750091447630,1.5584,157.74,157.71,8.45870411]
[1750091447845,4.71897009,157.73,157.71,8.45870411]
[1750091448168,4.7189708,157.73,157.71,8.45870411]
[1750091448461,16.41144461,157.77,157.68,24.31325463]
[1750091448638,4.71845421,157.76,157.73,8.45870411]
[1750091448837,4.71845421,157.75,157.73,8.45870411]
[1750091449033,42.41144461,157.77,157.73,8.45870411]
[1750091449240,4.71843938,157.76,157.73,8.45870411]
[1750091449731,11.05720315,157.76,157.72,8.45870411]
[1750091450134,4.71843938,157.76,157.72,8.45870411]
[1750091450347,4.71843938,157.76,157.73,8.45870411]
[1750091450745,4.71060979,157.76,157.73,8.45870411]
[1750091452246,42.41133154,157.77,157.73,8.45870411]
[1750091453147,50.87003565,157.77,157.73,8.45870411]
[1750091455464,50.87003565,157.77,157.72,8.45870411]
[1750091455637,8.45870411,157.73,157.68,88.8]
[1750091455962,8.45870411,157.7,157.65,14.80180681]
[1750091456148,27.4855,157.72,157.64,6.34343717]
[1750091456149,8.45870411,157.69,157.64,6.34343717]
[1750091456348,8.45870411,157.69,157.64,14.80214128]
[1750091456654,8.45870411,157.69,157.63,20.36262856]
[1750091456655,8.45870411,157.68,157.63,20.36262856]
[1750091457458,8.45870411,157.69,157.64,8.45870411]
[1750091458572,8.45870411,157.69,157.64,14.80194035]
[1750091459145,32.24124458,157.7,157.64,14.80194035]
[1750091459473,34.35870411,157.7,157.65,8.45870411]
[1750091459645,25.9,157.7,157.66,8.45870411]
[1750091459966,8.45870411,157.7,157.65,8.45870411]
[1750091460578,8.45870411,157.7,157.66,6.3427629]
[1750091462958,8.45870411,157.7,157.66,14.80146701]
[1750091464574,8.45870411,157.7,157.65,14.80186934]
[1750091465384,8.45870411,157.7,157.65,6.34316523]
[1750091465671,8.45870411,157.7,157.65,14.80186934]
[1750091467055,13.16512639,157.71,157.66,8.45870411]
[1750091467257,4.70642228,157.71,157.68,8.45870411]
[1750091467456,36.22852725,157.72,157.68,8.45870411]
[1750091467657,4.70731459,157.71,157.67,8.45870411]
[1750091468077,13.1660187,157.71,157.67,8.45870411]
[1750091468277,8.45870411,157.7,157.65,103.60186934]
[1750091468860,14.79996132,157.7,157.65,103.60186934]
[1750091469068,19.50727591,157.7,157.65,103.60186934]
[1750091469254,14.79996132,157.7,157.65,95.14316523]
[1750091469458,19.50727591,157.7,157.65,103.60186934]
[1750091470154,19.50934965,157.7,157.65,103.60186934]
[1750091470469,11.05064554,157.7,157.65,103.60186934]
[1750091470672,19.50934965,157.7,157.65,14.80186934]
[1750091472060,8.45870411,157.69,157.65,6.34316523]
[1750091472256,8.45870411,157.68,157.64,6.34356762]
[1750091472766,8.45870411,157.69,157.64,14.80227173]
[1750091473277,8.45870411,157.69,157.65,8.45870411]
[1750091473477,13.17160439,157.69,157.65,14.80165195]
[1750091474268,8.45870411,157.69,157.65,14.80165195]
[1750091475579,14.80027714,157.69,157.65,6.34294784]
[1750091475985,4.7239665,157.68,157.65,6.34294784]
[1750091476181,13.18267189,157.67,157.63,100.70389151]
[1750091476489,4.72396778,157.66,157.63,100.70389151]
[1750091476661,8.74302725,157.68,157.63,109.16259562]
[1750091476861,4.7317778,157.67,157.63,103.60259562]
[1750091477065,4.73177861,157.66,157.63,103.60259562]
[1750091477287,8.74302725,157.68,157.63,103.60259562]
[1750091477460,4.7317896,157.67,157.63,103.60259562]
[1750091477660,4.7317896,157.66,157.63,103.60259562]
[1750091477860,15.08505331,157.68,157.63,103.60259562]
[1750091478062,4.73212889,157.67,157.63,103.60259562]
[1750091478369,4.73212889,157.66,157.63,103.60259562]
[1750091478569,4.73212889,157.65,157.63,103.60259562]
[1750091478782,15.08505331,157.68,157.63,103.60259562]
[1750091478969,4.73472681,157.67,157.63,103.60259562]
[1750091479157,4.73472681,157.66,157.63,103.60259562]
[1750091479361,4.73472681,157.65,157.63,103.60259562]
[1750091479562,4.73057357,157.7,157.64,8.45870411]
[1750091479778,13.1930441,157.69,157.65,8.45870411]
[1750091479985,4.73433999,157.68,157.65,8.45870411]
[1750091480189,4.73433999,157.67,157.65,8.45870411]
[1750091480387,4.73433999,157.66,157.65,8.45870411]
[1750091481788,4.73433999,157.66,157.65,14.80186934]
[1750091484669,14.79987038,157.7,157.65,14.80186934]
[1750091484868,4.73572574,157.69,157.65,14.80186934]
[1750091485072,14.79987038,157.7,157.65,14.80186934]
[1750091485073,4.73572574,157.68,157.65,14.80186934]
[1750091485271,4.73572574,157.67,157.65,14.80186934]
[1750091485593,8.45870411,157.7,157.65,14.80186934]
[1750091485891,4.73579324,157.69,157.65,14.80186934]
[1750091486096,4.73579324,157.68,157.65,22.20107832]
[1750091486264,3.30461134,157.71,157.67,8.45870411]
[1750091486464,4.73574673,157.7,157.68,8.45870411]
[1750091486675,4.73574673,157.69,157.68,8.45870411]
[1750091487174,4.73574673,157.69,157.67,14.80074731]
[1750091487379,4.73574673,157.68,157.67,14.80074731]
[1750091487587,3.30461134,157.71,157.67,14.80074731]
[1750091487786,4.73558233,157.7,157.67,14.80074731]
[1750091487980,4.73558233,157.69,157.67,14.80074731]
[1750091488290,3.30461134,157.71,157.67,14.80074731]
[1750091488480,4.73513993,157.7,157.67,14.80074731]
[1750091488797,4.73513993,157.69,157.67,14.80074731]
[1750091488973,4.7358551,157.68,157.67,14.80074731]
[1750091489377,4.73585581,157.68,157.67,14.80074731]
[1750091489890,3.30461134,157.71,157.67,14.80074731]
[1750091490090,4.73580718,157.7,157.67,14.80074731]
[1750091490296,4.73573163,157.69,157.67,14.80074731]
[1750091490478,3.30461134,157.71,157.68,8.45870411]
[1750091490679,4.73554458,157.7,157.68,8.45870411]
[1750091490996,4.73554458,157.69,157.68,8.45870411]
[1750091491787,31.93654267,157.72,157.68,8.45870411]
[1750091491976,4.73555857,157.71,157.69,14.80026032]
[1750091492175,4.73555857,157.7,157.69,14.80026032]
[1750091492906,4.73555857,157.7,157.69,8.45870411]
[1750091493096,4.73552349,157.7,157.69,8.45870411]
[1750091493806,30.35104267,157.72,157.69,8.45870411]
[1750091494102,30.35104267,157.72,157.71,8.45870411]
[1750091494308,35.08636321,157.72,157.71,8.45870411]
[1750091495904,35.08652637,157.72,157.71,14.79945612]
[1750091496123,35.08652637,157.72,157.68,6.34195839]
[1750091496327,4.7354837,157.71,157.7,8.45870411]
[1750091497402,4.7354837,157.71,157.7,14.7998582]
[1750091498741,30.35104267,157.72,157.7,14.7998582]
[1750091498894,14.14452111,157.75,157.71,8.45870411]
[1750091499094,4.73701267,157.74,157.7,6.34115409]
[1750091499295,4.73701267,157.73,157.7,6.34115409]
[1750091499600,14.14452111,157.75,157.7,6.34115409]
[1750091499827,4.74029458,157.74,157.7,6.34115409]
[1750091500122,4.74029458,157.73,157.69,22.19526117]
[1750091500339,14.14452111,157.75,157.69,22.19526117]
[1750091500629,4.74029529,157.74,157.73,8.45870411]
[1750091501607,4.73702489,157.74,157.73,14.79865212]
[1750091503828,14.14452111,157.75,157.73,14.79865212]
[1750091504000,14.14452111,157.75,157.74,8.45870411]
[1750091504202,18.87825865,157.75,157.74,8.45870411]
[1750091504891,18.87825865,157.75,157.74,14.79825019]
[1750091507096,18.87470737,157.75,157.74,14.79825019]
[1750091507302,4.72982005,157.79,157.74,14.79825019]
[1750091507517,4.72982005,157.78,157.77,8.45870411]
[1750091508096,4.72982005,157.78,157.74,6.33954608]
[1750091508301,9.99640411,157.81,157.77,8.45870411]
[1750091508510,4.7255455,157.8,157.77,8.45870411]
[1750091508710,4.7255455,157.79,157.78,8.45870411]
[1750091509315,4.7255455,157.79,157.78,14.79664301]
[1750091509906,4.72455191,157.79,157.78,14.79664301]
[1750091510834,4.72455191,157.82,157.78,14.79664301]
[1750091511040,4.72455191,157.81,157.8,8.45870411]
[1750091512833,4.71932736,157.81,157.8,8.45870411]
[1750091513538,4.71932736,157.82,157.8,14.79583972]
[1750091513713,1.5617,157.85,157.81,8.45870411]
[1750091514031,4.71915286,157.84,157.8,6.33713561]
[1750091514223,26.0,157.86,157.83,8.45870411]
[1750091514430,4.71400892,157.85,157.8,22.17997464]
[1750091514627,1.5498,157.89,157.8,22.17997464]
[1750091514628,4.71322601,157.86,157.84,8.45870411]
[1750091514828,4.71322601,157.88,157.85,8.45870411]
[1750091515027,4.71322601,157.87,157.85,8.45870411]
[1750091515327,4.71322601,157.88,157.85,8.45870411]
[1750091515501,4.71228343,157.88,157.85,14.79364426]
[1750091515705,1.5498,157.89,157.87,8.45870411]
[1750091516215,6.26208343,157.89,157.87,8.45870411]
[1750091516423,6.26208343,157.89,157.86,8.45870411]
[1750091516615,1.5498,157.89,157.86,8.45870411]
[1750091517318,7.88337647,157.89,157.86,8.45870411]
[1750091521147,1.5498,157.89,157.86,8.45870411]
[1750091521323,16.47114531,157.91,157.88,8.45870411]
[1750091521324,8.0124412,157.91,157.88,8.45870411]
[1750091521530,1.6177,157.93,157.88,8.45870411]
[1750091521731,6.32998343,157.93,157.88,8.45870411]
[1750091522045,10.07640411,157.93,157.89,8.45870411]
[1750091522244,40.76509318,157.93,157.88,8.45870411]
[1750091522426,8.45870411,157.9,157.83,18.64964886]
[1750091522623,8.45870411,157.9,157.86,8.45870411]
[1750091522827,14.7914791,157.91,157.87,8.45870411]
[1750091523434,11.02146406,157.91,157.87,8.45870411]
[1750091523650,14.7914791,157.91,157.87,8.45870411]
[1750091523844,8.45870411,157.9,157.86,8.45870411]
[1750091524555,14.79188181,157.9,157.86,8.45870411]
[1750091524850,8.45870411,157.9,157.86,8.45870411]
[1750091525146,8.45870411,157.89,157.85,8.45870411]
[1750091527955,8.45870411,157.89,157.85,14.79376478]
[1750091528335,14.79186709,157.9,157.86,8.45870411]
[1750091529162,19.47949037,157.9,157.86,8.45870411]
[1750091529337,14.79186709,157.9,157.86,8.45870411]
[1750091529841,13.14632739,157.9,157.86,14.79340201]
[1750091530253,13.14624261,157.9,157.86,14.79340201]
[1750091530738,4.6875385,157.89,157.86,14.79340201]
[1750091530938,4.6875385,157.89,157.86,8.45870411]
[1750091531166,4.6875385,157.89,157.87,8.45870411]
[1750091531377,27.6177,157.93,157.87,8.45870411]
[1750091531378,19.47879222,157.92,157.87,8.45870411]
[1750091531544,13.14624261,157.91,157.86,14.79332254]
[1750091531863,4.6875385,157.9,157.86,14.79332254]
[1750091533178,4.68973458,157.91,157.88,8.45870411]
[1750091533374,4.68973458,157.92,157.88,8.45870411]
[1750091533572,4.68973458,157.91,157.88,14.79244827]
[1750091533884,4.68973458,157.9,157.88,14.79244827]
[1750091534050,4.68973458,157.91,157.88,14.79244827]
[1750091534374,4.68973458,157.9,157.88,14.79244827]
[1750091534574,4.69208531,157.91,157.88,14.79244827]
[1750091534771,4.69208531,157.9,157.88,14.79244827]
[1750091534971,4.69208531,157.91,157.88,14.79244827]
[1750091535147,4.69208531,157.9,157.87,14.79285411]
[1750091535348,4.69227569,157.89,157.86,14.79331001]
[1750091535582,4.69249624,157.89,157.86,14.79331001]
[1750091535951,8.45870411,157.9,157.86,14.79331001]
[1750091536150,4.69561494,157.89,157.86,14.79331001]
[1750091536367,14.79144159,157.91,157.86,14.79331001]
[1750091536674,4.69560161,157.9,157.86,14.79331001]
[1750091536881,4.69560161,157.89,157.86,14.79331001]
[1750091537099,14.79144159,157.91,157.86,14.79331001]
[1750091537376,4.69561606,157.9,157.86,14.79331001]
[1750091537681,4.69561606,157.89,157.86,14.79331001]
[1750091537844,14.79144159,157.91,157.86,14.79331001]
[1750091538044,4.69551999,157.9,157.86,14.79331001]
[1750091538272,4.69551999,157.89,157.86,14.79331001]
[1750091538470,14.79143653,157.91,157.86,14.79331001]
[1750091538660,8.45870411,157.87,157.81,15.84108746]
[1750091538967,13.15778083,157.86,157.82,6.33633253]
[1750091539168,8.45870411,157.86,157.82,14.79503664]
[1750091539391,8.45870411,157.88,157.84,8.45870411]
[1750091539590,32.33273242,157.91,157.84,8.45870411]
[1750091539591,4.7009344,157.87,157.84,8.45870411]
[1750091539759,4.7009344,157.86,157.84,8.45870411]
[1750091539958,8.45870411,157.89,157.84,14.79400832]
[1750091540167,13.15961356,157.88,157.84,14.79400832]
[1750091540372,4.70090945,157.87,157.84,14.79400832]
[1750091540585,4.70090945,157.86,157.84,14.79400832]
[1750091540772,8.45870411,157.88,157.84,14.79400832]
[1750091540976,4.70367166,157.87,157.84,14.79400832]
[1750091541182,4.70367166,157.86,157.84,14.79400832]
[1750091541404,8.45870411,157.88,157.84,14.79400832]
[1750091541687,4.70366312,157.87,157.84,14.79400832]
[1750091541889,4.70366312,157.86,157.84,14.79400832]
[1750091542065,8.45870411,157.88,157.84,14.79400832]
[1750091542270,4.70472459,157.87,157.84,14.79400832]
[1750091542479,4.70472459,157.86,157.84,14.79400832]
[1750091542793,8.45870411,157.88,157.84,14.79400832]
[1750091543090,4.70465077,157.87,157.84,14.79400832]
[1750091543389,4.70465077,157.86,157.84,14.79400832]
[1750091543575,8.45870411,157.88,157.84,14.79400832]
[1750091543775,4.70924242,157.87,157.84,14.79400832]
[1750091543981,4.70924242,157.86,157.84,14.79400832]
[1750091544161,8.45870411,157.88,157.84,14.79400832]
[1750091544367,4.71001807,157.87,157.84,6.33530421]
[1750091544567,4.71001807,157.86,157.84,6.33530421]
[1750091544792,8.45870411,157.87,157.83,14.79456676]